[Event "1000GM Schev-G3 March 2024"]
[Site "Santa Clara"]
[Date "2024.03.09"]
[Round "1.1"]
[White "Chinni, Rishabh"]
[Black "Heimann, Alexander"]
[Result "1-0"]
[ECO "B34"]
[WhiteElo "2010"]
[BlackElo "2290"]
[Annotator "TA"]
[PlyCount "109"]
[EventDate "2024.03.06"]
[EventType "schev"]
[EventCountry "USA"]
[SourceTitle "playchess.com"]
[Source "ChessBase"]
[SourceQuality "1"]
[TimeControl "5400+30"]

{[%evp 24,109,35,25,33,31,35,-18,-31,-29,-31,-37,-37,-62,-37,-69,-16,-29,0,-77,0,0,0,-55,-16,-138,-58,-66,-67,-55,-30,-95,-89,-85,-82,-88,-91,-70,-35,-28,-22,-9,0,-66,-62,-117,-118,-113,-139,-137,0,0,0,0,0,0,1,2,20,13,38,32,77,45,82,92,68,83,66,79,90,89,81,89,108,38,116,115,1295,717,741,803,1112,972,1204,1186,29972,29967]} 1. e4 {[%emt 0:00:01]} c5 {[%emt 0:04:18]} 2. Nf3 {[%emt 0:00:03]} Nc6 {[%emt 0:00:05]} 3. d4 {[%emt 0:00:04]} cxd4 {[%emt 0:00:07]} 4. Nxd4 {[%emt 0:00:03]} Nf6 {[%emt 0:00:05]} 5. Nc3 {[%emt 0:00:03]} g6 {[%emt 0:00:03]} 6. Nxc6 {[%emt 0:00:16]} bxc6 {[%emt 0:00:25]} 7. e5 {[%emt 0:00:16]} Ng8 {[%emt 0:00:59]} 8. Bc4 {[%emt 0:01:10]} Qa5 {[%emt 0:00:55]} 9. Qe2 {[%emt 0:00:51] B34: Sicilian: Accelerated Dragon with 5 Nc3: sidelines.} Bg7 {[%emt 0:01:18]} 10. Bf4 {[%emt 0:11:07]} Qb4 {[%emt 0:05:19]} 11. O-O {[%emt 0:07:52]} Ba6 {[%emt 0:00:24]} 12. Bxa6 {[%emt 0:03:17]} Qxf4 {[%emt 0:00:11]} 13. Rfe1 {[%emt 0:00:59]} h5 $146 {[%emt 0:07:55]} ({Predecessor:} 13... Nh6 14. Rad1 Rd8 15. g3 Qb4 16. Ne4 O-O 17. c3 Qb6 18. Ng5 f6 19. Bc4+ Kh8 20. exf6 Bxf6 {1-0 Berry,F (2033)-Movsisyan,M (2300) Tulsa April op 2005 (2)}) 14. Rad1 {[%emt 0:04:20]} (14. g3 {simplifies} Qb4 15. Rab1 Nh6 16. a3) 14... Nh6 {[%emt 0:05:25] [#]} 15. e6 {[%emt 0:12:08]} (15. Ne4 $1 $14) 15... dxe6 $11 {[%emt 0:02:56]} 16. Bb7 {[%emt 0:00:05]} Rb8 {[%emt 0:00:34]} 17. Bxc6+ {[%emt 0:00:04]} Kf8 {[%emt 0:00:16]} 18. h3 {[%emt 0:05:31]} Nf5 {[%emt 0:01:07]} 19. Qd3 {[%emt 0:07:22]} Bd4 {[%emt 0:05:50]} (19... Rxb2 20. Qd8#) ({Black should play} 19... Bf6 $15 20. Na4 Kg7 (20... Bxb2 $2 21. Nxb2 Qb4 22. Nc4 $18)) 20. Bf3 $1 $11 {[%emt 0:01:35]} Qh4 {[%emt 0:00:31]} (20... Rxb2 21. Ne2 Bxf2+ 22. Kxf2 $16) 21. Rd2 {[%emt 0:05:50]} (21. Ne4 $11) 21... Bb6 {[%emt 0:04:03]} (21... Rxb2 $17 22. Re4 Qf6) 22. Qe4 $11 {[%emt 0:07:05]} Kg7 {[%emt 0:00:38]} 23. Red1 {[%emt 0:01:26]} (23. Qe5+ $11 Qf6 24. Qxf6+ Kxf6 (24... exf6 25. Na4 $11) 25. g4) 23... Qf6 {[%emt 0:02:10]} 24. Qa4 {[%emt 0:04:21]} (24. Na4 $11) 24... Rhc8 {[%emt 0:00:43]} (24... Nd6 $17 25. Qa6 Rhc8) 25. Ne4 $1 $15 {[%emt 0:04:20]} Qe5 {[%emt 0:00:59]} (25... Qxb2 26. c3 Bxf2+ 27. Rxf2 $16 (27. Nxf2 Qxc3 28. Qxa7 Rb5 $16)) 26. c3 {[%emt 0:00:30]} Bc7 {[%emt 0:02:02]} (26... Nh4 {feels hotter.} 27. Be2 Qf4 28. Ba6 Rh8) 27. g3 {[%emt 0:02:56]} (27. Kf1 $11) 27... h4 $17 {[%emt 0:06:25]} 28. Re2 {[%emt 0:00:50]} hxg3 {[%emt 0:00:59]} 29. Nxg3 {[%emt 0:00:10]} Qf6 {[%emt 0:04:18]} 30. Qg4 {[%emt 0:02:04]} Rh8 {[%emt 0:01:35]} 31. Ne4 $1 {[%emt 0:01:31]} Qe5 {[%emt 0:02:26]} 32. Nd6 {[%emt 0:01:52]} Qa5 {[%emt 0:04:53]} 33. b4 {[%emt 0:01:30]} (33. Nxf7 $1 $11 Rh4 (33... Kxf7 34. Rxe6 Rh6 35. Bd5 $11) 34. Qg2 Kxf7 35. Rxe6) 33... Qa6 $15 {[%emt 0:02:04]} 34. Nxf5+ {[%emt 0:01:42]} (34. Nxf7 $15 Rh4 (34... Kxf7 35. Rxe6 Qxe6 36. Bd5 $17) 35. Qg2 Kxf7 36. Rxe6 Qxe6 37. Bd5 Qxd5 (37... Bh2+ $2 38. Kxh2 Rb6 39. Re1 $18) 38. Qxd5+ Kf6 39. Qc6+ Bd6 40. Kg2) 34... exf5 $17 {[%emt 0:00:06]} 35. Qd4+ {[%emt 0:00:26]} e5 {[%emt 0:05:00]} 36. Qc5 {[%emt 0:02:25] [#]} Qb6 {[%emt 0:00:25]} (36... Rxh3 $2 37. Qxc7 (37. Kg2 $2 Rxf3 38. Kxf3 e4+ $19) 37... Rxf3 38. Qxe5+ Kh6 39. Rd4 $18 (39. Qxb8 Qxe2 40. Qh8+ Kg5 $17)) (36... Rbc8 $1 $17 {[%cal Oe5e4] And now ...e4! would win.} 37. Rd7 Bb8) 37. Qxb6 {[%emt 0:00:37]} Bxb6 {[%emt 0:00:17]} 38. Rxe5 {[%emt 0:00:34]} Rxh3 {[%emt 0:00:03]} 39. Rd3 $1 {[%emt 0:02:59]} Kf6 {[%emt 0:00:17]} 40. Red5 {[%emt 0:01:10]} Re8 {[%emt 0:01:07]} 41. Kf1 {[%emt 0:04:04]} Rh4 {[%emt 0:01:39]} 42. a4 {[%emt 0:00:32]} Bc7 {[%emt 0:04:05]} 43. Rd7 {[%emt 0:00:58]} Re7 {[%emt 0:00:41] [#]} 44. Bc6 $1 {[%emt 0:00:35]} Be5 {[%emt 0:00:15]} 45. Rxe7 {[%emt 0:00:16]} Kxe7 {[%emt 0:00:02]} 46. Rd7+ {[%emt 0:00:17]} Ke6 {[%emt 0:00:04]} 47. Rxa7 {[%emt 0:00:09]} Bxc3 {[%emt 0:00:04]} 48. b5 {[%emt 0:00:19]} Rb4 {[%emt 0:02:19]} 49. a5 {[%emt 0:00:55]} (49. Ra6 $16) 49... Rb2 {[%emt 0:00:34]} ({Black should try} 49... Rb1+ $14 50. Ke2 Ra1) 50. b6 $16 {[%emt 0:01:47]} Ra2 $2 {[%emt 0:01:51][%mdl 8192]} (50... Kd6 $16) 51. b7 {[%emt 0:01:20]} ({Not} 51. a6 Bd4 $11) 51... Rxf2+ {[%emt 0:00:14]} 52. Kg1 $1 {[%emt 0:01:45]} ({Worse is} 52. Kxf2 Bd4+ 53. Kg3 Bxa7 $15) 52... Rb2 {[%emt 0:01:26]} 53. Ra8 {[%emt 0:00:05]} Be5 {[%emt 0:01:15]} 54. a6 {[%emt 0:01:08]} Ra2 {[%emt 0:08:49]} 55. Re8+ {[%emt 0:00:27]} ({Weaker is} 55. b8=R Bxb8 56. Rxb8 Ra1+ 57. Kf2 Rxa6 $11) 1-0

[Event "1000GM Schev-G3 March 2024"]
[Site "Santa Clara"]
[Date "2024.03.09"]
[Round "1.2"]
[White "Penagalapati, Abhinav"]
[Black "Zuluaga Mancilla, Cesar"]
[Result "1-0"]
[ECO "A12"]
[WhiteElo "2043"]
[BlackElo "2217"]
[Annotator "RC"]
[PlyCount "103"]
[EventDate "2024.03.06"]
[EventType "schev"]
[EventCountry "USA"]
[SourceTitle "playchess.com"]
[Source "ChessBase"]
[SourceQuality "1"]
[TimeControl "5400+30"]

1. Nf3 {[%emt 0:00:43]} d5 {[%emt 0:08:03]} 2. e3 {[%emt 0:00:17]} c6 {[%emt 0:00:22]} 3. c4 {[%emt 0:00:14]} Nf6 {[%emt 0:00:39]} 4. b3 {[%emt 0:00:52]} Bf5 {[%emt 0:00:46]} 5. Bb2 {[%emt 0:01:38]} e6 {[%emt 0:00:42]} 6. Nc3 {[%emt 0:00:51]} h6 {[%emt 0:03:08]} 7. Be2 {[%emt 0:02:40]} Nbd7 {[%emt 0:01:22]} 8. d4 {[%emt 0:01:53]} Bd6 {[%emt 0:01:02]} 9. Bd3 {[%emt 0:03:52]} Bxd3 {[%emt 0:01:23]} 10. Qxd3 {[%emt 0:00:02]} O-O {[%emt 0:00:13]} 11. O-O {[%emt 0:00:11]} Bb4 {[%emt 0:08:49]} 12. Nd2 {[%emt 0:02:18]} a5 {[%emt 0:17:42]} 13. a3 {[%emt 0:03:01]} Be7 {[%emt 0:05:15]} 14. Rfd1 {[%emt 0:03:17]} Qb6 {[%emt 0:07:01]} 15. c5 {[%emt 0:15:17]} Qc7 {[%emt 0:41:33]} 16. f4 {[%emt 0:00:56]} Nh7 {[%emt 0:00:00]} 17. Rf1 {[%emt 0:01:21]} f5 {[%emt 0:00:00]} 18. b4 {[%emt 0:00:31]} Nhf6 {[%emt 0:00:00]} 19. Rfc1 {[%emt 0:09:06]} g5 {[%emt 0:00:00]} 20. Ne2 {[%emt 0:00:59]} Rf7 {[%emt 0:00:00]} 21. Bc3 {[%emt 0:00:37]} a4 {[%emt 0:00:00]} 22. b5 {[%emt 0:00:58]} Rg7 {[%emt 0:00:00]} 23. Rab1 {[%emt 0:00:34]} Nh5 {[%emt 0:00:00]} 24. Nf3 {[%emt 0:09:34]} gxf4 {[%emt 0:00:00]} 25. Nxf4 {[%emt 0:00:58]} Nxf4 {[%emt 0:00:00]} 26. exf4 {[%emt 0:00:02]} Qxf4 {[%emt 0:00:00]} 27. bxc6 {[%emt 0:00:37]} bxc6 {[%emt 0:00:00]} 28. Re1 {[%emt 0:00:06]} Qg4 {[%emt 0:00:00]} 29. Qe2 {[%emt 0:02:42]} Kh8 {[%emt 0:00:00]} 30. Rb7 {[%emt 0:02:19]} Bf6 {[%emt 0:00:00]} 31. Qd2 {[%emt 0:18:17]} f4 {[%emt 0:00:00]} 32. Kh1 {[%emt 0:02:49]} Rag8 {[%emt 0:00:00]} 33. Rb2 {[%emt 0:01:22]} Qf5 {[%emt 0:01:04]} 34. Re2 {[%emt 0:03:00]} Kh7 {[%emt 0:02:17]} 35. Qe1 {[%emt 0:01:01]} Re8 {[%emt 0:00:24]} 36. Rb7 {[%emt 0:00:25]} Reg8 {[%emt 0:03:12]} 37. Rbb2 {[%emt 0:01:57]} Nf8 {[%emt 0:00:27]} 38. Ba5 {[%emt 0:03:20]} Kh8 {[%emt 0:01:02]} 39. Rb8 {[%emt 0:01:17]} Qg4 {[%emt 0:01:33]} 40. Rc8 {[%emt 0:02:36]} e5 {[%emt 0:01:04]} 41. dxe5 {[%emt 0:00:27]} Qxc8 {[%emt 0:00:11]} 42. exf6 {[%emt 0:00:03]} Rf7 {[%emt 0:00:58]} 43. Bc3 {[%emt 0:00:26]} Ng6 {[%emt 0:01:10]} 44. Re6 {[%emt 0:01:00]} Kh7 {[%emt 0:00:26]} 45. Nd4 {[%emt 0:00:20]} Qa6 {[%emt 0:00:13]} 46. Nf5 {[%emt 0:01:12]} Qd3 {[%emt 0:00:29]} 47. Nd6 {[%emt 0:00:45]} f3 {[%emt 0:00:49]} 48. Nxf7 {[%emt 0:03:01]} fxg2+ {[%emt 0:00:04]} 49. Kg1 {[%emt 0:00:01]} Nf4 {[%emt 0:00:11]} 50. Re3 {[%emt 0:00:24]} Qe4 {[%emt 0:01:23]} 51. Nd6 {[%emt 0:00:54]} Qg6 {[%emt 0:00:19]} 52. Re7+ {[%emt 0:00:13]} 1-0

[Event "1000GM Schev-G3 March 2024"]
[Site "Santa Clara"]
[Date "2024.03.09"]
[Round "1.3"]
[White "Champsi, Imran"]
[Black "Dominguez Aguilar, Guillermo"]
[Result "0-1"]
[ECO "A70"]
[WhiteElo "2057"]
[BlackElo "2284"]
[Annotator "TA"]
[PlyCount "68"]
[EventDate "2024.03.06"]
[EventType "schev"]
[EventCountry "USA"]
[SourceTitle "playchess.com"]
[Source "ChessBase"]
[SourceQuality "1"]
[TimeControl "5400+30"]

{[%evp 21,68,55,58,47,75,37,47,0,33,-60,-61,-97,-60,-69,-62,-311,-328,-339,-348,-345,-337,-323,-333,-353,-334,-538,-542,-554,-552,-704,-718,-729,-772,-838,-750,-1053,-1032,-1039,-924,-916,-784,-1070,-1065,-1442,-1437,-1461,-1381,-5622,-5622]} 1. d4 {[%emt 1:31:00]} Nf6 {[%emt 0:01:00]} 2. c4 {[%emt 0:00:00]} c5 {[%emt 0:00:38]} 3. d5 {[%emt 0:00:00]} e6 {[%emt 0:00:13]} 4. Nc3 {[%emt 0:00:00]} exd5 {[%emt 0:00:12]} 5. cxd5 {[%emt 0:00:00]} d6 {[%emt 0:00:07]} 6. e4 {[%emt 0:00:00]} a6 {[%emt 0:00:22]} 7. a4 {[%emt 0:00:00]} g6 {[%emt 0:00:37]} 8. Bd3 {[%emt 0:00:00]} Nbd7 {[%emt 0:07:21]} 9. Nf3 {[%emt 0:00:00]} Bg7 {[%emt 0:00:24]} 10. h3 {[%emt 0:00:00]} O-O {[%emt 0:00:34]} 11. O-O {[%emt 0:00:00]} Nh5 {[%emt 0:00:51]} 12. a5 {[%emt 0:00:00]} Re8 {[%emt 0:00:52]} 13. Bc2 {[%emt 0:00:00]} Rb8 {[%emt 0:09:54]} 14. Nd2 {[%emt 0:00:00]} (14. g4 $14 {is more appropriate.} Nhf6 15. Bf4) 14... Qh4 {[%emt 0:17:17]} 15. Nc4 {[%emt 0:00:00]} (15. Ne2 $14) 15... Ne5 $1 $15 {[%emt 0:01:15]} 16. Nxd6 {[%emt 0:00:00] [#]} Bxh3 $1 {[%emt 0:01:09] Threatens to win with ...Bg4.} 17. Nxe8 {[%emt 0:00:00]} (17. gxh3 $2 Qxh3 18. f3 Ng3 $19 (18... Qg3+ $2 19. Kh1 $19)) 17... Bg4 {[%emt 0:01:35] Really sharp!} 18. f3 $2 {[%emt 0:00:00] [#]} ({White has to play} 18. Nxg7 $1 $15 Bxd1 19. Bxd1 Kxg7 20. Be3) 18... Nxf3+ $1 $19 {[%emt 0:00:20]} 19. Rxf3 {[%emt 0:00:00]} (19. gxf3 $2 Bd4+ $19) 19... Bd4+ {[%emt 0:00:20]} 20. Be3 {[%emt 0:00:53]} Bxe3+ {[%emt 0:00:27]} (20... Rxe8 $2 21. Qe1 Qd8 22. Rf1 $18) 21. Rxe3 {[%emt 0:00:01]} Bxd1 {[%emt 0:00:15]} 22. Rxd1 {[%emt 0:02:49]} Rxe8 {[%emt 0:00:09]} 23. d6 $2 {[%emt 0:01:40]} (23. e5 {was necessary.} Qg5 24. Rde1) 23... Nf6 {[%emt 0:02:05] White must now prevent ...Ng4. Black is clearly winning.} 24. Rh3 {[%emt 0:01:53]} Qg5 {[%emt 0:00:09]} (24... Qg4 $2 25. Nd5 Nxd5 (25... Nxe4 26. d7 $17) 26. Rxd5 $19) 25. Bb3 {[%emt 0:02:56]} c4 {[%emt 0:00:14]} (25... Nxe4 $2 {too greedy.} 26. d7 Rd8 27. Nxe4 $18) 26. Ba4 {[%emt 0:00:17]} Rd8 {[%emt 0:00:25]} 27. Rf3 {[%emt 0:01:36]} Qc5+ {[%emt 0:00:48]} 28. Kh1 {[%emt 0:00:48]} Rxd6 {[%emt 0:00:31]} 29. Rdf1 {[%emt 0:00:21]} Ng4 {[%emt 0:00:32]} 30. Nd5 {[%emt 0:00:13]} Ne5 {[%emt 0:01:24]} 31. Nf6+ {[%emt 0:00:55]} Kh8 {[%emt 0:00:28]} 32. Rh3 {[%emt 0:00:31] [#]} Rxf6 $1 {[%emt 0:01:33]} 33. Rxf6 {[%emt 0:00:02]} Qxa5 {[%emt 0:00:19] ( -> ...Qe1+)} 34. Ra3 {[%emt 0:01:04]} Qe1+ {[%emt 0:00:25] Black took control after the opening.   Weighted Error Value: White=1.23/Black=0.24 (precise) .  Loses game:     	White=1     	---        Mistake:       	White=3     	---        Inaccurate:     	White=2     	Black=2      OK:         	---       	Black=9      Best:        	White=2     	---        Strong:       	---       	Black=2      Brilliant:      	---       	Black=1} 0-1

[Event "1000GM Schev-G3 March 2024"]
[Site "Santa Clara"]
[Date "2024.03.09"]
[Round "1.4"]
[White "Blandon Villa, Diego F"]
[Black "Liu, Patrick"]
[Result "1/2-1/2"]
[ECO "B22"]
[WhiteElo "2274"]
[BlackElo "2068"]
[Annotator "TA"]
[PlyCount "77"]
[EventDate "2024.03.06"]
[EventType "schev"]
[EventCountry "USA"]
[SourceTitle "playchess.com"]
[Source "ChessBase"]
[SourceQuality "1"]
[TimeControl "5400+30"]

{[%evp 15,77,3,0,-13,-12,-24,-16,-15,-22,-21,-25,-18,-16,0,0,-22,0,-16,-14,-8,0,-16,126,77,88,0,0,0,0,6,9,0,0,0,0,0,16,0,26,7,8,12,41,52,88,65,114,77,68,69,68,68,126,156,152,130,623,612,799,10,9,0,0,0]} 1. e4 {[%emt 0:00:10]} c5 {[%emt 0:00:05]} 2. c3 {[%emt 0:00:07][%cal Bc2c3,Bc3d4][%mdl 32]} Nf6 {[%emt 0:00:21]} 3. e5 {[%emt 0:00:16]} Nd5 {[%emt 0:00:04]} 4. d4 {[%emt 0:00:06]} cxd4 {[%emt 0:00:07]} 5. Nf3 {[%emt 0:01:32]} e6 {[%emt 0:00:06]} 6. cxd4 {[%emt 0:00:11]} d6 {[%emt 0:00:03]} 7. Nc3 {[%emt 0:00:14]} Nxc3 {[%emt 0:00:25]} 8. bxc3 {[%emt 0:00:13]} Qc7 {[%emt 0:00:26]} 9. Bb2 {[%emt 0:04:36]} Nd7 {[%emt 0:03:01]} 10. exd6 {[%emt 0:02:55]} (10. Bb5 {seems wilder.} a6 11. exd6 Qb6 12. Bxd7+ Bxd7 13. Qb3) 10... Bxd6 {[%emt 0:00:02]} 11. Bd3 {[%emt 0:00:17]} O-O {[%emt 0:05:26]} 12. O-O {[%emt 0:00:48]} b6 {[%emt 0:05:00]} 13. Re1 {[%emt 0:10:06]} Bb7 {[%emt 0:01:41]} 14. h3 {[%emt 0:00:39]} Rfe8 {[%emt 0:04:51]} 15. c4 {[%emt 0:04:25]} h6 {[%emt 0:02:32]} 16. Qe2 {[%emt 0:14:52]} Rac8 {[%emt 0:02:47]} 17. Rac1 {[%emt 0:02:59]} Qb8 {[%emt 0:06:12]} (17... Bb4 {feels hotter.} 18. Nd2 Qf4 19. Red1 Nf6) 18. Bb1 {[%emt 0:06:08]} Qa8 {[%emt 0:09:33] [#]} (18... Bb4 $11) 19. Qd3 {[%emt 0:02:52]} (19. d5 $142 $1 {Hoping for Qd3.} exd5 20. Qd3) 19... Nf8 $16 {[%emt 0:06:46] [#]} 20. Ne5 {[%emt 0:13:29]} (20. d5 $1 $16 {[%cal Rd5e6] Strongly threatening dxe6.} exd5 21. Bxg7 Kxg7 22. Qd4+ f6 23. Nh4) 20... Rc7 $11 {[%emt 0:11:28]} 21. c5 {[%emt 0:10:22]} Bxe5 {[%emt 0:05:58]} 22. Rxe5 {[%emt 0:00:07]} f5 {[%emt 0:06:54]} (22... Bxg2 $2 {is the wrong capture.} 23. Qg3 Bh1 24. d5 $18) 23. cxb6 {[%emt 0:18:17]} Rxc1+ {[%emt 0:00:09]} 24. Bxc1 {[%emt 0:00:02][%cal Bb2c1,Bc1f4,Bf4e5][%mdl 32] Qg3 is the strong threat.} axb6 {[%emt 0:03:09][%cal Oe8c8,Ba7b6,Bb6b5][%mdl 32]} 25. Qg3 {[%emt 0:01:48]} Kh8 {[%emt 0:00:30]} 26. Rb5 {[%emt 0:00:29]} Qd8 {[%emt 0:03:50]} 27. Kh2 {[%emt 0:01:33]} Bc6 {[%emt 0:01:17]} 28. Rb4 {[%emt 0:00:29]} Nh7 {[%emt 0:00:49]} 29. Bf4 {[%emt 0:00:42]} b5 {[%emt 0:00:45]} 30. Be5 {[%emt 0:01:26]} Qd7 {[%emt 0:00:51]} (30... Nf6 $14 {should be considered.}) 31. Qg6 {[%emt 0:00:59]} Kg8 {[%emt 0:00:23]} 32. Bd3 {[%emt 0:00:58][%cal Od4d5] White has more active pieces.} Nf8 {[%emt 0:00:27]} 33. Qg3 {[%emt 0:00:12][%cal Od4d5] Black must now prevent d5!} Ra8 {[%emt 0:00:26] [#]} (33... Re7 $1 $14) 34. Bxb5 $1 $16 {[%emt 0:00:55][%mdl 512]} Bxb5 {[%emt 0:01:38]} 35. Rxb5 {[%emt 0:00:02][%cal Og3f3] Threatens to win with Qf3!} Rxa2 $2 {[%emt 0:00:04][%mdl 8192]} (35... Kh7 $16) 36. Rb8 $18 {[%emt 0:01:12]} Rc2 {[%emt 0:00:15]} 37. Bd6 $2 {[%emt 0:01:54]} ({Better is} 37. Qb3 $18 Rd2 38. Qb4 Rxf2 39. Qxf8+ Kh7 40. Rc8 (40. Rd8 Rxg2+ 41. Kh1 Qb7 $18)) 37... Rc8 $11 {[%emt 0:00:04] Black is weak on the dark squares} 38. Bc5 {[%emt 0:00:32]} Kf7 {[%emt 0:00:38]} 39. Rxc8 {[%emt 0:00:28] Weighted Error Value: White=0.33/Black=0.38.  Loses game:     	---       	Black=1      Mistake:       	White=2     	Black=3      Inaccurate:     	White=1     	Black=4      OK:         	White=10    	Black=13     Best:        	White=2     	Black=1} 1/2-1/2

[Event "1000GM Schev-G3 March 2024"]
[Site "Santa Clara"]
[Date "2024.03.09"]
[Round "1.5"]
[White "Gracia Alvarez, Gerardo Antonio"]
[Black "Suarez, Sebastian"]
[Result "1-0"]
[ECO "D12"]
[WhiteElo "2233"]
[BlackElo "2113"]
[Annotator "TA"]
[PlyCount "61"]
[EventDate "2024.03.06"]
[EventType "schev"]
[EventCountry "USA"]
[SourceTitle "playchess.com"]
[Source "ChessBase"]
[SourceQuality "1"]
[TimeControl "5400+30"]

{[%evp 13,61,29,29,14,31,17,31,14,20,0,37,18,75,71,62,21,118,99,216,204,254,268,251,258,304,308,310,309,303,255,267,247,252,260,252,168,273,273,291,280,291,300,284,285,312,325,346,310,450,443]} 1. d4 {[%emt 1:31:00]} d5 {[%emt 0:04:33]} 2. c4 {[%emt 0:00:00]} c6 {[%emt 0:00:18]} 3. Nf3 {[%emt 0:00:00]} Nf6 {[%emt 0:00:10]} 4. e3 {[%emt 0:00:00]} Bf5 {[%emt 0:01:40]} 5. Nc3 {[%emt 0:00:00]} e6 {[%emt 0:00:17]} 6. Nh4 {[%emt 0:00:00]} Bg6 {[%emt 0:01:45]} 7. Nxg6 {[%emt 0:00:00]} hxg6 {[%emt 0:00:02]} 8. Bd2 {[%emt 0:00:00]} Nbd7 {[%emt 0:01:21]} 9. Qc2 {[%emt 0:00:00]} Bd6 {[%emt 0:09:14]} 10. cxd5 {[%emt 0:00:00] Weiß steht etwas besser.} exd5 {[%emt 0:01:25]} 11. O-O-O {[%emt 0:00:00]} O-O {[%emt 0:00:59]} (11... Bxh2 $6 12. Kb1 $16) (11... Ng4 $5 12. Be1 Rxh2 13. Rxh2 Nxh2 $11) 12. Kb1 {[%emt 0:00:00]} Re8 {[%emt 0:03:40] [#]} (12... Ng4 $11 {bleibt in der Remisbreite.} 13. Be1 b5) 13. f3 $1 $16 {[%emt 0:00:00]} b5 {[%emt 0:01:55]} 14. Bd3 {[%emt 0:00:00]} Qb6 {[%emt 0:14:03]} (14... b4 $11 15. Na4 Rc8) 15. g4 {[%emt 0:00:00][%cal Bg2g4,Bg4g5][%mdl 32] Damit ist Schwarz auf der Verliererstraße.} c5 {[%emt 0:20:58]} (15... Rab8 $16) 16. Bxb5 {[%emt 0:00:00] Und g5 würde nun gewinnen.} (16. Nxb5 $2 c4 17. Bxg6 Qxb5 $19) 16... Qb7 {[%emt 0:04:02]} 17. dxc5 {[%emt 0:00:00]} Bxc5 {[%emt 0:00:33]} 18. g5 {[%emt 0:00:00]} a6 {[%emt 0:01:40]} 19. Ba4 {[%emt 0:00:00]} Nh5 {[%emt 0:01:29]} 20. Bc1 {[%emt 0:00:00]} (20. Qb3 Qxb3 21. Bxb3 (21. axb3 Red8 $18) 21... Nb6 22. Nxd5 (22. Bxd5 Rab8 $18) 22... Nxd5) 20... Rec8 {[%emt 0:00:22]} 21. Qb3 {[%emt 0:00:00]} (21. Rxd5 Nb6 $18) 21... Qa7 {[%emt 0:01:17]} 22. Bxd7 {[%emt 0:00:00]} ({Viel schwächer ist} 22. Rxd5 Nb6 23. Rd3 Nxa4 $18) 22... Qxd7 {[%emt 0:00:11]} 23. Qxd5 {[%emt 0:00:00]} ({Keinesfalls} 23. Rxd5 $6 Qh3 24. Qd1 Bb4 $16) 23... Qe7 {[%emt 0:01:10]} 24. e4 {[%emt 0:01:17]} Rab8 {[%emt 0:00:21]} (24... Bb4 $142) 25. Qd7 $18 {[%emt 0:01:23]} Qe5 {[%emt 0:01:49][%cal Oc5a3] [#] Droht ...Ba3! und aus.} 26. Rd5 {[%emt 0:00:44]} Qe6 {[%emt 0:01:15]} 27. Qxe6 {[%emt 0:01:39]} fxe6 {[%emt 0:00:01]} 28. Rd3 {[%emt 0:00:08]} e5 {[%emt 0:00:26]} 29. Nd5 {[%emt 0:01:40]} Kh7 {[%emt 0:01:23]} 30. Be3 {[%emt 0:00:33]} Bb4 {[%emt 0:04:31]} (30... Bxe3 {war angesagt.} 31. Rxe3 (31. Nxe3 Nf4 $18) 31... Rf8) 31. Rc1 {[%emt 0:01:07] Gewichteter Fehlerwert: Weiß=0.13 (sehr präzise) /Schwarz=0.40.  Fehler:       	---       	Schwarz=5     Ungenau:       	Weiß=2     	Schwarz=1     OK:         	Weiß=12    	Schwarz=6     Bester:       	Weiß=1     	---        Stark:        	Weiß=1     	---} 1-0

[Event "1000GM Schev-G3 March 2024"]
[Site "Santa Clara"]
[Date "2024.03.10"]
[Round "2.1"]
[White "Zuluaga Mancilla, Cesar"]
[Black "Chinni, Rishabh"]
[Result "1-0"]
[ECO "D02"]
[WhiteElo "2217"]
[BlackElo "2010"]
[Annotator "RC"]
[PlyCount "99"]
[EventDate "2024.03.06"]
[EventType "schev"]
[EventCountry "USA"]
[SourceTitle "playchess.com"]
[Source "ChessBase"]
[SourceQuality "1"]
[TimeControl "5400+30"]

1. d4 {[%emt 0:11:35]} Nf6 {[%emt 0:00:06]} 2. Nf3 {[%emt 0:00:04]} e6 {[%emt 0:00:07]} 3. Bf4 {[%emt 0:00:05]} d5 {[%emt 0:00:13]} 4. e3 {[%emt 0:00:09]} Bd6 {[%emt 0:00:39]} 5. c3 {[%emt 0:00:07]} c5 {[%emt 0:00:09]} 6. dxc5 {[%emt 0:00:05]} Bxc5 {[%emt 0:00:25]} 7. Nbd2 {[%emt 0:00:10]} Nc6 {[%emt 0:00:15]} 8. Bd3 {[%emt 0:00:31]} O-O {[%emt 0:00:33]} 9. O-O {[%emt 0:00:37]} b6 {[%emt 0:00:33]} 10. Qa4 {[%emt 0:00:28]} Bb7 {[%emt 0:00:42]} 11. Rad1 {[%emt 0:00:50]} Qe7 {[%emt 0:01:07]} 12. Bg5 {[%emt 0:01:58]} h6 {[%emt 0:01:37]} 13. Bh4 {[%emt 0:00:07]} e5 {[%emt 0:13:34]} 14. e4 {[%emt 0:00:11]} d4 {[%emt 0:01:09]} 15. Nb3 {[%emt 0:06:16]} a6 {[%emt 0:10:23]} 16. Nxc5 {[%emt 0:00:10]} bxc5 {[%emt 0:00:06]} 17. Rfe1 {[%emt 0:01:12]} Qd6 {[%emt 0:01:39]} 18. Qa3 {[%emt 0:03:03]} Rfd8 {[%emt 0:02:44]} 19. Bc4 {[%emt 0:01:04]} Rac8 {[%emt 0:03:36]} 20. h3 {[%emt 0:04:01]} Rd7 {[%emt 0:07:01]} 21. Bg3 {[%emt 0:01:22]} Qe7 {[%emt 0:05:43]} 22. Nh4 {[%emt 0:05:29]} dxc3 {[%emt 0:06:56]} 23. Nf5 {[%emt 0:00:59]} Qd8 {[%emt 0:01:12]} 24. Rxd7 {[%emt 0:00:31]} Qxd7 {[%emt 0:00:02]} 25. bxc3 {[%emt 0:00:34]} Ne7 {[%emt 0:01:39]} 26. Nxe7+ {[%emt 0:06:09]} Qxe7 {[%emt 0:00:10]} 27. f3 {[%emt 0:00:03]} Nh5 {[%emt 0:03:13]} 28. Bh2 {[%emt 0:00:17]} Rd8 {[%emt 0:00:58]} 29. Qc1 {[%emt 0:02:34]} Qd6 {[%emt 0:01:22]} 30. Qe3 {[%emt 0:02:39]} Nf4 {[%emt 0:03:24]} 31. Bxf4 {[%emt 0:08:04]} exf4 {[%emt 0:01:45]} 32. Qf2 {[%emt 0:02:13]} Qe5 {[%emt 0:00:31]} 33. Rc1 {[%emt 0:03:42]} Bc8 {[%emt 0:01:07]} 34. Bd5 {[%emt 0:00:23]} Be6 {[%emt 0:02:00]} 35. c4 {[%emt 0:00:16]} Rb8 {[%emt 0:00:53]} 36. Kh1 {[%emt 0:08:50]} Qb2 {[%emt 0:06:09]} 37. Qg1 {[%emt 0:03:13]} Qxa2 {[%emt 0:03:27]} 38. Bxe6 {[%emt 0:00:58]} fxe6 {[%emt 0:00:01]} 39. Qxc5 {[%emt 0:00:08]} Rb1 {[%emt 0:01:15]} 40. Qg1 {[%emt 0:03:45]} Rb2 {[%emt 0:00:42]} 41. c5 {[%emt 0:02:18]} Rc2 {[%emt 0:00:38]} 42. c6 {[%emt 0:01:41]} Qc4 {[%emt 0:00:25]} 43. Rxc2 {[%emt 0:01:02]} Qxc2 {[%emt 0:00:01]} 44. Qb6 {[%emt 0:00:11]} Qc3 {[%emt 0:02:20]} 45. Kh2 {[%emt 0:04:13]} Kh7 {[%emt 0:02:28]} 46. c7 {[%emt 0:03:02]} a5 {[%emt 0:01:20]} 47. e5 {[%emt 0:01:23]} Qe1 {[%emt 0:10:03]} 48. c8=Q {[%emt 0:00:33]} Qg3+ {[%emt 0:00:03]} 49. Kh1 {[%emt 0:00:16]} Qe1+ {[%emt 0:00:03]} 50. Qg1 {[%emt 0:00:06]} 1-0